bitfinex-derivatives/quotes_SOLF0:USTF0_20250309
["timestamp","ask_amount","ask_price","bid_price","bid_amount"]
[1741527066608,2.49797132,135.16,135.12,0.04834609]
[1741527066903,35.0605,135.15,135.12,0.04834609]
[1741527067707,27.66,135.15,135.12,0.04834609]
[1741527069108,27.66,135.15,135.12,7.45044609]
[1741527070012,27.66,135.15,135.13,7.4014]
[1741527070507,27.66,135.15,135.14,7.401]
[1741527071111,27.66,135.15,135.13,7.4013]
[1741527072511,27.66,135.15,135.13,7.4016]
[1741527074308,27.66,135.15,135.12,0.04834609]
[1741527074510,27.66,135.15,135.12,7.45024609]
[1741527074712,27.66,135.15,135.12,0.04834609]
[1741527075212,27.66,135.15,135.13,7.4013]
[1741527076710,7.4016,135.13,135.12,0.04834609]
[1741527077213,2.5521,135.14,135.09,221.9]
[1741527077414,7.4029,135.11,135.09,221.9]
[1741527077614,27.66,135.11,135.09,221.9]
[1741527077913,27.66,135.11,135.1,7.4032]
[1741527078511,0.05483031,135.12,135.11,7.4027]
[1741527080717,27.66,135.15,135.14,7.401]
[1741527080913,35.0589,135.18,135.14,7.401]
[1741527081315,35.0589,135.18,135.1,69.2111]
[1741527081515,35.0589,135.18,135.15,7.4004]
[1741527081912,27.71675743,135.18,135.15,0.0484955]
[1741527082211,0.05675743,135.18,135.16,7.3996]
[1741527083314,0.05675743,135.18,135.15,7.4489955]
[1741527083716,0.05675743,135.18,135.15,0.0484955]
[1741527084719,0.05675743,135.18,135.16,7.3998]
[1741527085621,0.05675743,135.18,135.15,0.0484955]
[1741527085918,27.66,135.17,135.09,221.9]
[1741527086115,7.4014,135.14,135.09,221.9]
[1741527086313,35.0614,135.14,135.09,221.9]
[1741527086617,27.66,135.14,135.09,221.9]
[1741527087313,7.403,135.11,135.1,0.04880921]
[1741527087620,27.66,135.11,135.1,0.04880921]
[1741527088213,27.66,135.11,135.0,256.52748169]
[1741527088410,27.66,135.11,135.03,82.08879414]
[1741527088614,2.4631,135.1,135.03,82.08879414]
[1741527088810,7.4053,135.07,135.03,82.08879414]
[1741527089010,35.0653,135.07,135.03,82.08879414]
[1741527089414,7.4054,135.06,135.04,41.09661099]
[1741527089817,27.7076391,135.07,135.04,41.09661099]
[1741527090023,27.7076391,135.07,135.04,29.27691099]
[1741527090323,27.7076391,135.07,135.04,0.05221393]
[1741527090526,7.4059,135.06,135.04,0.05221393]
[1741527090721,27.7076391,135.07,135.04,0.05221393]
[1741527091224,7.4054,135.06,135.04,0.05221393]
[1741527091426,27.7076391,135.07,135.01,221.98]
[1741527091719,7.4067,135.04,134.96,4.8848]
[1741527091920,27.66,135.03,134.96,4.8848]
[1741527092227,27.66,135.03,134.94,294.29540136]
[1741527092619,0.05648778,135.0,134.98,0.04694455]
[1741527092822,27.66,134.99,134.98,0.04694455]
[1741527094022,27.66,134.99,134.98,7.45674455]
[1741527094624,27.66,134.99,134.98,0.04694455]
[1741527094814,27.66,134.99,134.98,7.45674455]
[1741527096417,27.66,134.99,134.98,0.04694455]
[1741527097123,27.66,134.99,134.98,7.45674455]
[1741527097314,0.05648778,135.0,134.98,7.45674455]
[1741527097520,0.05648778,135.0,134.98,0.04694455]
[1741527097720,0.05648778,135.0,134.99,7.4092]
[1741527098230,0.05648778,135.0,134.98,7.45654455]
[1741527098928,0.05648778,135.0,134.98,0.04694455]
[1741527100227,0.05648778,135.0,134.98,7.45664455]
[1741527101129,0.05648778,135.0,134.99,7.4092]
[1741527105538,27.68,135.05,134.98,0.04694455]
[1741527105728,7.4051,135.07,134.99,62.0]
[1741527106031,27.68,135.06,134.99,64.5023]
[1741527106426,2.5061,135.08,134.99,64.5023]
[1741527106627,0.0536813,135.04,135.01,0.05158916]
[1741527107627,27.68,135.03,135.01,0.05158916]
[1741527109232,35.0873,135.03,135.01,0.05158916]
[1741527109439,27.68,135.03,135.01,0.05158916]
[1741527109838,7.4076,135.02,135.01,0.05158916]
[1741527111026,7.4101,134.98,134.95,2.4694]
[1741527111337,27.68,134.98,134.94,222.04]
[1741527111528,27.68,134.98,134.91,2.4877]
[1741527112230,27.68,134.98,134.93,0.04939486]
[1741527112231,7.4118,134.95,134.93,0.04939486]
[1741527112430,27.68,134.94,134.93,0.04939486]
[1741527112936,35.092,134.94,134.93,0.04939486]
[1741527113533,27.68,134.94,134.93,0.04939486]
[1741527114431,0.0472289,134.96,134.93,0.04939486]
[1741527114937,7.4115,134.95,134.93,0.04939486]
[1741527115135,27.68,134.94,134.93,0.04939486]
[1741527115536,35.092,134.94,134.93,0.04939486]
[1741527116138,27.68,134.94,134.93,0.04939486]
[1741527116331,0.0472289,134.96,134.93,0.04939486]
[1741527116537,27.7272289,134.96,134.93,0.04939486]
[1741527117239,27.7272289,134.96,134.94,7.4116]
[1741527117642,27.7272289,134.96,134.93,0.04939486]
[1741527117837,0.0472289,134.96,134.93,0.04939486]
[1741527118133,0.0472289,134.96,134.95,7.4114]
[1741527120137,27.68,134.98,134.95,7.4114]
[1741527120343,27.68,134.98,134.97,7.4103]
[1741527120742,27.68,135.01,134.94,7.5546]
[1741527120934,27.68,135.01,134.99,7.4089]
[1741527121339,27.72799177,135.01,134.99,7.4640331]
[1741527121743,0.04799177,135.01,135.0,7.4087]
[1741527122140,27.68,135.05,134.99,0.0551331]
[1741527122345,27.68,135.05,135.03,7.4067]
[1741527122744,27.68,135.05,135.04,7.4065]
[1741527122942,2.4522,135.1,134.98,27.68]
[1741527123143,27.68,135.09,134.98,27.68]
[1741527123343,0.04976689,135.05,135.04,7.4065]
[1741527123544,27.68,135.09,135.03,0.0501179]
[1741527123745,0.0528137,135.06,135.03,0.0501179]
[1741527123947,27.68,135.12,135.04,222.28]
[1741527124146,27.68,135.12,135.04,249.96]
[1741527124653,27.68,135.12,135.04,222.28]
[1741527124842,7.404,135.09,135.04,229.6861]
[1741527125149,0.05431146,135.09,135.07,0.04932511]
[1741527125544,27.68,135.08,135.07,0.04932511]
[1741527126246,35.0843,135.08,135.07,0.04932511]
[1741527126449,27.68,135.08,135.07,0.04932511]
[1741527127747,0.05431146,135.09,135.07,0.04932511]
[1741527127952,27.68,135.16,135.07,0.04932511]
[1741527128250,7.4019,135.13,135.07,7.4046]
[1741527128651,7.4019,135.13,135.06,27.68]
[1741527128854,7.401,135.14,135.09,7.4034]
[1741527129049,27.68,135.16,135.09,7.4034]
[1741527129249,27.68,135.16,135.07,2.6234]
[1741527129550,27.68,135.16,135.1,0.05590342]
[1741527130342,7.4007,135.15,135.11,7.4026]
[1741527130747,7.4007,135.15,135.1,0.05590342]
[1741527130952,7.4016,135.13,135.1,0.05590342]
[1741527131148,27.66,135.16,135.1,0.05590342]
[1741527131348,7.4019,135.13,135.1,0.05590342]
[1741527132150,27.66,135.16,135.1,0.05590342]
[1741527132346,193.0,135.2,135.1,0.05590342]
[1741527132652,27.66,135.19,135.09,30.2222]
[1741527132847,27.66,135.19,135.14,0.05250386]
[1741527133254,7.4008,135.15,135.14,0.05250386]
[1741527133549,35.0608,135.15,135.09,2.5622]
[1741527133749,27.66,135.15,135.07,2.6234]
[1741527134447,7.4041,135.09,135.07,2.6234]
[1741527134943,7.45950357,135.09,135.07,2.67959335]
[1741527135143,0.05540357,135.09,135.07,2.67959335]
[1741527135557,0.05540357,135.09,135.07,0.05619335]
[1741527135845,27.66,135.08,135.07,0.05619335]
[1741527139646,27.66,135.08,135.07,7.46109335]
[1741527139851,27.66,135.08,135.07,0.05619335]
[1741527141055,27.66,135.08,135.07,7.46109335]
[1741527141257,27.66,135.14,135.07,0.05619335]
[1741527141451,27.66,135.16,135.06,27.66]
[1741527141752,27.66,135.16,135.08,7.4042]
[1741527141951,27.66,135.16,135.06,27.66]
[1741527142147,2.4922,135.15,135.06,27.66]
[1741527142347,27.66,135.16,135.1,0.05462266]
[1741527143357,7.4017,135.13,135.1,0.05462266]
[1741527143553,35.0617,135.13,135.1,0.05462266]
[1741527143854,27.66,135.13,135.1,0.05462266]
[1741527144056,27.66,135.16,135.1,0.05462266]
[1741527144258,27.66,135.16,135.06,27.66]
[1741527144459,27.66,135.16,135.12,0.0517025]
[1741527145358,7.4016,135.13,135.12,0.0517025]
[1741527145661,27.66,135.13,135.05,4.9175]
[1741527146359,7.4037,135.1,135.05,4.9175]
[1741527146548,27.66,135.1,135.05,4.9175]
[1741527146751,0.04929671,135.09,135.06,0.05011324]
[1741527147960,7.4044,135.08,135.06,0.05011324]
[1741527148161,0.04929671,135.09,135.06,0.05011324]
[1741527150760,7.4059,135.05,135.04,222.28]
[1741527150960,27.64,135.05,134.98,229.5095]
[1741527151157,27.64,135.05,134.98,222.1]
[1741527151365,7.4084,135.01,134.98,222.1]
[1741527151858,7.45962182,135.01,134.98,222.15637526]
[1741527152262,0.05122182,135.01,134.98,222.15637526]
[1741527152658,27.64,135.05,134.98,222.15637526]
[1741527152857,27.64,135.05,134.99,27.66]
[1741527153161,27.64,135.05,135.0,7.4084]
[1741527153360,35.0462,135.05,135.01,62.0]
[1741527153758,0.04834021,135.04,135.02,0.05096295]
[1741527155362,7.407,135.03,135.02,0.05096295]
[1741527156068,0.04834021,135.04,135.02,0.05096295]
[1741527158970,0.04834021,135.04,135.03,7.407]
[1741527161375,0.04834021,135.04,135.02,7.45826295]
[1741527162772,0.04834021,135.04,135.02,0.05096295]
[1741527162972,0.04834021,135.04,135.03,7.407]
[1741527166073,7.407,135.03,135.02,0.05096295]
[1741527168965,0.04834021,135.04,135.02,0.05096295]
[1741527169975,27.70834021,135.04,135.02,0.05096295]
[1741527170163,27.70834021,135.04,135.02,7.45816295]
[1741527170567,27.70834021,135.04,135.02,0.05096295]
[1741527170877,0.04834021,135.04,135.03,7.407]
[1741527171070,0.04834021,135.04,135.02,0.05096295]
[1741527172572,7.45514021,135.04,135.02,0.05096295]
[1741527173084,0.04834021,135.04,135.02,0.05096295]
[1741527173282,0.04834021,135.04,135.02,7.45846295]
[1741527173483,0.04834021,135.04,135.02,0.05096295]
[1741527173785,7.407,135.03,135.02,0.05096295]
[1741527173986,0.04834021,135.04,135.02,0.05096295]
[1741527174578,7.407,135.03,135.02,0.05096295]
[1741527177182,7.4092,134.99,134.98,222.1]
[1741527177688,27.66,135.0,134.98,222.1]
[1741527177883,27.66,135.0,134.98,229.5097]
[1741527178286,27.71474083,135.0,134.98,229.56065771]
[1741527178590,27.71474083,135.0,134.98,222.15095771]
[1741527178790,27.71474083,135.0,134.98,0.05095771]
[1741527178984,7.4104,134.97,134.93,2.453]
[1741527179183,27.66,135.0,134.94,7.4116]
[1741527179885,27.66,135.0,134.93,64.453]
[1741527180089,0.05228667,134.98,134.96,0.04709742]
[1741527180889,7.4103,134.97,134.96,0.04709742]
[1741527181593,35.0703,134.97,134.96,0.04709742]
[1741527182785,27.66,134.97,134.92,222.2]
[1741527182986,7.4124,134.94,134.92,222.2]
[1741527183191,27.66,134.93,134.9,10.22602145]
[1741527183987,27.70880193,134.93,134.9,10.27775548]
[1741527184784,27.70880193,134.93,134.9,0.05173403]
[1741527185290,27.66,134.98,134.9,0.05173403]
[1741527185496,27.66,134.98,134.9,2.4786]
[1741527186593,27.66,135.01,134.93,0.05374525]
[1741527186790,27.66,135.03,134.94,249.94]
[1741527186998,27.66,135.03,134.95,2.4536]
[1741527187596,27.66,135.03,134.96,2.5334]
[1741527187797,0.05257941,135.0,134.98,0.05307378]
[1741527188194,0.05257941,135.0,134.98,62.05307378]
[1741527189198,0.05257941,135.0,134.98,0.05307378]
[1741527189399,0.05257941,135.0,134.99,7.4092]
[1741527190093,27.66,135.05,135.02,7.4071]
[1741527190800,27.66,135.05,134.98,27.66]
[1741527191001,27.66,135.05,135.03,7.4068]
[1741527191198,27.70305474,135.05,135.03,7.46187564]
[1741527191597,27.70305474,135.05,135.03,0.05507564]
[1741527192394,7.4065,135.04,135.03,0.05507564]
[1741527192791,27.70305474,135.05,134.99,62.0]
[1741527192995,7.408,135.02,134.98,7.4097]
[1741527193296,27.66,135.05,134.96,2.5334]
[1741527193990,0.05281707,135.02,134.99,0.05464814]
[1741527194901,0.05281707,135.02,135.0,7.4087]
[1741527195096,0.05281707,135.02,134.99,0.05464814]
[1741527195293,0.05281707,135.02,134.99,2.42494814]
[1741527195805,0.05281707,135.02,135.01,7.4081]
[1741527197300,0.05281707,135.02,134.99,2.42494814]
[1741527198404,0.05281707,135.02,135.01,7.4081]
[1741527199699,7.46081707,135.02,134.99,2.42494814]
[1741527200003,27.71281707,135.02,134.99,0.05464814]
[1741527201003,7.4087,135.0,134.99,0.05464814]
[1741527201400,27.71281707,135.02,134.94,222.28]
[1741527201599,27.66,135.02,134.94,222.28]
[1741527201906,1.7331,135.01,134.94,222.28]
[1741527202107,7.4114,134.95,134.94,222.28]
[1741527202700,7.46025694,134.96,134.94,222.28]
[1741527203204,0.04915694,134.96,134.93,0.04978401]
[1741527203401,7.412,134.94,134.93,0.04978401]
[1741527203705,35.072,134.94,134.93,0.04978401]
[1741527206508,7.413,134.93,134.88,229.6551]
[1741527207612,0.05239113,134.92,134.89,7.46392523]
[1741527207909,0.05239113,134.92,134.89,0.04962523]
[1741527208412,27.66,134.91,134.82,222.3]
[1741527208806,7.4156,134.88,134.82,222.3]
[1741527209105,27.66,134.88,134.82,222.3]
[1741527209309,27.66,134.88,134.82,249.96]
[1741527209711,27.66,134.88,134.86,7.416]
[1741527210113,27.71351043,134.88,134.86,7.416]
[1741527210312,27.71351043,134.88,134.85,7.4167]
[1741527210913,27.71351043,134.88,134.84,0.05181256]
[1741527211111,0.05351043,134.88,134.84,0.05181256]
[1741527211312,0.05351043,134.88,134.85,27.68]
[1741527211520,27.68,134.92,134.86,4.9315]
[1741527211816,27.68,134.94,134.86,7.3361]
[1741527212014,27.68,134.94,134.91,7.4132]
[1741527212221,27.68,134.94,134.86,7.3361]
[1741527212613,27.68,134.98,134.86,7.3361]
[1741527212816,7.4107,134.97,134.93,7.4125]
[1741527213220,0.05520513,134.96,134.94,0.04920343]
[1741527214421,0.05520513,134.96,134.95,7.4114]
[1741527214728,27.68,135.0,134.94,62.04920343]
[1741527214926,27.68,135.0,134.98,7.4094]
[1741527215226,27.68,135.0,134.84,222.36]
[1741527215429,27.68,135.0,134.87,2.5645]
[1741527215927,0.0511772,134.95,134.92,0.05031059]
[1741527217322,7.4125,134.93,134.92,0.05031059]
[1741527217623,35.7725,134.93,134.92,0.05031059]
[1741527218025,35.7725,134.93,134.92,1.059e-05]
[1741527218230,39.4725,134.93,134.92,1.059e-05]
[1741527220727,35.7725,134.93,134.92,1.059e-05]
[1741527222532,39.4725,134.93,134.92,1.059e-05]
[1741527223030,35.7725,134.93,134.92,1.059e-05]
[1741527225033,39.4725,134.93,134.92,1.059e-05]
[1741527226030,39.4725,134.93,134.8,4.9932]
[1741527226031,7.4191,134.81,134.8,2.3736]
[1741527226631,28.28,134.82,134.75,4.9839]
[1741527226934,28.28,134.82,134.76,2.3723]
[1741527227128,0.04815486,134.8,134.77,0.05161203]
[1741527228127,7.4206,134.79,134.77,0.05161203]
[1741527228333,0.04815486,134.8,134.77,0.05161203]
[1741527228830,7.46815486,134.8,134.77,0.05161203]
[1741527229935,28.26,134.79,134.68,123.13319121]
[1741527230240,28.26,134.79,134.71,7.2801]
[1741527230940,0.05167958,134.76,134.74,0.04722085]
[1741527231937,28.55167958,134.76,134.74,0.04722085]
[1741527232539,7.4224,134.75,134.74,0.04722085]
[1741527233543,35.97367958,134.76,134.74,0.04722085]
[1741527234543,7.4224,134.75,134.74,0.04722085]
[1741527235842,28.55167958,134.76,134.74,0.04722085]
[1741527236545,7.4224,134.75,134.74,0.04722085]
[1741527237545,7.4244,134.72,134.67,284.46]
[1741527238045,28.46,134.73,134.67,222.46]
[1741527238644,0.04698832,134.71,134.69,0.05631641]
[1741527239046,28.46,134.73,134.71,7.4243]
[1741527239545,28.46,134.73,134.69,0.05631641]
[1741527239742,28.46,134.73,134.7,7.425]
[1741527240139,28.51153865,134.73,134.7,7.425]
[1741527240342,28.51153865,134.73,134.69,0.05631641]
[1741527240943,28.51153865,134.73,134.72,7.4241]
[1741527241342,7.4229,134.75,134.71,7.4242]
[1741527241642,28.48,134.77,134.69,90.48]
[1741527242043,35.9017,134.77,134.73,7.4232]
[1741527242250,28.48,134.77,134.73,7.4232]
[1741527242446,0.05308037,134.76,134.74,0.05058775]
[1741527243447,7.4224,134.75,134.74,0.05058775]
[1741527244046,7.47518037,134.76,134.74,0.05058775]
[1741527244351,0.05308037,134.76,134.74,0.05058775]
[1741527244553,7.4224,134.75,134.74,0.05058775]
[1741527246353,0.05308037,134.76,134.74,0.05058775]
[1741527247052,7.4224,134.75,134.74,0.05058775]
[1741527247751,7.4224,134.75,134.74,8.775e-05]
[1741527252256,11.1424,134.75,134.74,8.775e-05]
[1741527252461,16.2697,134.75,134.74,8.775e-05]
[1741527255758,12.5497,134.75,134.74,8.775e-05]
[1741527256859,16.2697,134.75,134.74,8.775e-05]
[1741527257457,28.53308037,134.76,134.74,8.775e-05]
[1741527258460,28.55308037,134.76,134.74,8.775e-05]
[1741527258767,0.05308037,134.76,134.74,8.775e-05]
[1741527259664,0.05308037,134.76,134.75,7.4224]
[1741527259964,0.05308037,134.76,134.74,8.775e-05]
[1741527260960,0.05308037,134.76,134.74,7.42308775]
[1741527261358,28.46,134.78,134.74,7.42308775]
[1741527261558,28.46,134.78,134.75,2.4348]
[1741527261960,35.8811,134.78,134.75,9.8572]
[1741527262254,35.8811,134.78,134.75,2.4348]
[1741527262460,35.93219594,134.78,134.75,2.4348]
[1741527262763,28.51109594,134.78,134.75,2.4348]
[1741527263663,7.4213,134.77,134.75,2.4348]
[1741527264456,7.4224,134.75,134.74,8.775e-05]
[1741527266956,11.1424,134.75,134.74,8.775e-05]
[1741527268664,12.46146025,134.75,134.74,8.775e-05]
[1741527268863,6.33144336,134.75,134.6,222.72]
[1741527269063,32.67346025,134.74,134.6,222.72]
[1741527269363,1.31906025,134.73,134.6,222.72]
[1741527269969,7.4302,134.61,134.6,222.72]
[1741527270159,36.2502,134.61,134.59,12.70622145]
[1741527270365,36.2502,134.61,134.59,2.53543472]
[1741527270560,28.87195154,134.61,134.59,2.53543472]
[1741527272768,28.87195154,134.61,134.59,9.96653472]
[1741527273269,28.87195154,134.61,134.59,2.53543472]
[1741527274466,0.05195154,134.61,134.59,2.53543472]
[1741527274667,28.84,134.64,134.59,2.53543472]
[1741527275068,2.4141,134.71,134.59,2.53543472]
[1741527275373,7.4277,134.66,134.62,7.4294]
[1741527275573,28.84,134.66,134.59,2.4802]
[1741527275773,0.05105167,134.65,134.63,0.05567442]
[1741527277979,7.47955167,134.65,134.63,0.05567442]
[1741527279079,0.05105167,134.65,134.63,0.05567442]
[1741527279779,7.4285,134.64,134.63,0.05567442]
[1741527280172,7.4285,134.64,134.48,40.89564806]
[1741527280173,0.05105167,134.65,134.48,40.89564806]
[1741527280375,7.4333,134.56,134.49,7.3822]
[1741527280579,29.24,134.55,134.49,7.3822]
[1741527281375,0.05358906,134.53,134.51,0.0551683]
[1741527287578,0.05358906,134.53,134.51,7.4906683]
[1741527287784,0.05358906,134.53,134.51,0.0551683]
[1741527288284,7.4351,134.52,134.51,0.0551683]
[1741527288478,0.05358906,134.53,134.51,0.0551683]
[1741527289187,7.48828906,134.53,134.51,0.0551683]
[1741527289388,0.05358906,134.53,134.51,0.0551683]
[1741527290586,7.48828906,134.53,134.51,0.0551683]
[1741527292691,7.4351,134.52,134.51,0.0551683]
[1741527293386,7.48848906,134.53,134.51,0.0551683]
[1741527293789,0.05358906,134.53,134.51,0.0551683]
[1741527293986,7.4351,134.52,134.51,0.0551683]
[1741527295784,7.4351,134.52,134.51,6.83e-05]
[1741527300491,0.05358906,134.53,134.51,6.83e-05]
[1741527301696,7.4351,134.52,134.51,6.83e-05]
[1741527302794,0.05358906,134.53,134.51,6.83e-05]
[1741527303390,0.05358906,134.53,134.51,7.4354683]
[1741527303686,29.08,134.55,134.51,6.83e-05]
[1741527304690,7.4343,134.54,134.51,7.4354683]
[1741527304888,0.05020977,134.54,134.51,6.83e-05]
[1741527305285,7.48450977,134.54,134.51,7.4355683]
[1741527307399,7.48450977,134.54,134.51,6.83e-05]
[1741527308105,55.48293773,134.66,134.51,29.0400683]
[1741527308300,29.06,134.64,134.52,2.3841]
[1741527308501,36.4889,134.64,134.53,223.06]
[1741527308702,29.06,134.64,134.53,223.06]
[1741527308903,29.06,134.64,134.54,2.4952]
[1741527309201,7.4292,134.63,134.59,7.4309]
[1741527309400,0.05066186,134.6,134.59,7.4309]
[1741527309600,0.05066186,134.6,134.58,0.05604454]
[1741527310099,29.16,134.59,134.58,0.05604454]
[1741527310398,36.5913,134.59,134.58,0.05604454]
[1741527310794,7.4332,134.56,134.53,223.06]
[1741527310998,29.16,134.59,134.53,223.06]
[1741527311394,7.432,134.58,134.54,7.4335]
[1741527311595,29.16,134.59,134.54,7.4335]
[1741527311797,29.16,134.59,134.53,223.06]
[1741527312097,0.05126101,134.58,134.55,0.04979852]
[1741527312797,7.4329,134.56,134.55,0.04979852]
[1741527316000,7.4329,134.56,134.55,9.852e-05]
[1741527316401,2.4824,134.57,134.48,2.4952]
[1741527316799,7.436,134.51,134.48,2.4952]
[1741527317106,29.08,134.51,134.48,2.4952]
[1741527317603,29.13046549,134.51,134.48,2.54349409]
[1741527318411,7.4362,134.5,134.48,2.54349409]
[1741527318602,29.13046549,134.51,134.48,2.54349409]
[1741527318819,29.13046549,134.51,134.48,0.04829409]
[1741527320008,7.4368,134.49,134.48,0.04829409]
[1741527320210,29.13046549,134.51,134.41,225.6461]
[1741527320404,5.1862,134.5,134.41,225.6461]
[1741527320604,7.4394,134.45,134.41,225.6461]
[1741527320806,29.06,134.45,134.41,223.04]
[1741527321199,0.05055874,134.44,134.42,0.0570419]
[1741527322707,7.49045874,134.44,134.42,0.0570419]
[1741527322907,0.05055874,134.44,134.42,0.0570419]
[1741527323709,0.05055874,134.44,134.43,7.4401]
[1741527324810,0.05055874,134.44,134.42,0.0570419]
[1741527325314,0.05055874,134.44,134.43,7.4401]
[1741527325715,0.05055874,134.44,134.42,0.0570419]
[1741527325915,0.05055874,134.44,134.43,7.4401]
[1741527326114,0.05055874,134.44,134.42,0.0570419]
[1741527326516,0.05055874,134.44,134.43,7.4401]
[1741527326917,29.08,134.47,134.46,7.4384]
[1741527327411,29.1,134.5,134.46,7.4384]
[1741527327613,36.5366,134.5,134.46,7.4384]
[1741527327819,29.1,134.5,134.43,2.5824]
[1741527328119,7.490221,134.49,134.47,0.04779044]
[1741527328305,0.053021,134.49,134.47,0.04779044]
[1741527328711,7.4373,134.48,134.47,0.04779044]
[1741527330118,0.053021,134.49,134.47,0.04779044]
[1741527330722,7.490121,134.49,134.47,0.04779044]
[1741527331421,7.4373,134.48,134.47,0.04779044]
[1741527332016,0.053021,134.49,134.47,0.04779044]
[1741527332212,7.489921,134.49,134.47,0.04779044]
[1741527332819,7.4373,134.48,134.47,0.04779044]
[1741527333021,0.053021,134.49,134.47,0.04779044]
[1741527334125,0.053021,134.49,134.48,7.4373]
[1741527334619,28.98,134.53,134.47,0.04779044]
[1741527334923,7.4354,134.52,134.49,7.4368]
[1741527335121,7.6466,134.58,134.47,0.04779044]
[1741527335122,28.98,134.55,134.47,0.04779044]
[1741527335320,28.98,134.55,134.44,31.5678]
[1741527335724,0.05443026,134.51,134.48,7.49278365]
[1741527335925,28.96,134.54,134.44,31.5678]
[1741527336120,7.6466,134.58,134.48,0.04949383]
[1741527336121,0.05081634,134.51,134.48,0.04949383]
[1741527336418,10.15678443,134.6,134.49,223.12]
[1741527336619,10.15678443,134.6,134.5,2.5381]
[1741527337224,10.15678443,134.6,134.59,7.4313]
[1741527337721,2.24498443,134.6,134.59,7.4313]
[1741527337917,111.77284898,134.61,134.58,223.17428511]
[1741527338130,103.86054898,134.61,134.58,223.17428511]
[1741527338420,42.43260847,134.64,134.62,7.4296]
[1741527338831,42.43260847,134.64,134.58,285.12]
[1741527339125,42.43260847,134.64,134.58,223.12]
[1741527339518,0.04867064,134.62,134.6,0.0537685]
[1741527339716,42.43260847,134.64,134.61,29.06]
[1741527340216,42.43260847,134.64,134.61,36.4898]
[1741527340420,42.43260847,134.64,134.61,29.06]
[1741527340626,42.43260847,134.64,134.6,0.0537685]
[1741527340828,42.48349461,134.64,134.6,0.0537685]
[1741527341329,7.4291,134.63,134.6,0.0537685]
[1741527341528,0.05088614,134.64,134.6,0.0537685]
[1741527341929,7.4302,134.61,134.6,0.0537685]
[1741527342230,0.05088614,134.64,134.6,0.0537685]
[1741527343329,36.5664,134.68,134.6,0.0537685]
[1741527343530,29.14,134.68,134.6,2.4973685]
[1741527343731,29.16,134.7,134.6,2.4973685]
[1741527343930,36.5852,134.7,134.66,7.4273]
[1741527344131,36.5852,134.7,134.66,230.4273]
[1741527344324,29.16,134.7,134.66,223.0]
[1741527344524,7.4257,134.69,134.67,0.05549616]
[1741527345127,7.4263,134.68,134.67,0.05549616]
[1741527345526,3.72,134.68,134.58,222.94]
[1741527345830,5.1258,134.67,134.58,222.94]
[1741527346031,29.46,134.66,134.58,222.94]
[1741527346735,0.05549616,134.63,134.61,0.0544378]
[1741527346928,29.44,134.62,134.58,222.94]
[1741527347129,7.4313,134.59,134.58,222.94]
[1741527347627,7.4313,134.59,134.58,218.9849]
[1741527347827,29.44,134.62,134.52,225.4836]
[1741527348030,7.4333,134.56,134.52,225.4836]
[1741527348326,29.42,134.57,134.56,0.0507228]
[1741527348634,0.04872376,134.55,134.48,2.5196]
[1741527348836,29.42,134.57,134.48,2.5196]
[1741527349029,7.4336,134.55,134.48,2.5196]
[1741527349540,29.42,134.57,134.5,7.4361]
[1741527349835,0.04884402,134.53,134.5,0.04701791]
[1741527351527,0.04884402,134.53,134.51,7.4352]
[1741527351726,0.04884402,134.53,134.5,0.04701791]
[1741527351932,193.0,134.64,134.5,0.04701791]
[1741527352129,7.4313,134.59,134.53,7.4341]
[1741527352333,29.4,134.58,134.53,7.4341]
[1741527352533,29.4,134.58,134.48,2.5196]
[1741527353238,0.05648659,134.54,134.52,0.05646969]
[1741527353444,29.4,134.58,134.52,0.05646969]
[1741527353644,29.4,134.58,134.54,7.4337]
[1741527353944,29.4,134.58,134.54,222.96]
[1741527354340,29.34,134.59,134.54,222.96]
[1741527354536,0.05532615,134.57,134.54,222.96]